fUST/lending_fUST_20241006
["ID","MTS","AMOUNT","RATE_DAILY","PERIOD"]
[339937453,1728167449485,-150.112233,0.000137,2]
[339937454,1728167449494,-150.112233,0.000137,2]
[339937455,1728167449503,-6221.7475762,0.00013724,2]
[339937456,1728167449512,-397.0,0.0001373,2]
[339937457,1728167449522,-893.02276308,0.0001373,2]
[339937458,1728167449531,-193.53,0.00013733,2]
[339937459,1728167449540,-250.0,0.00013733,2]
[339937460,1728167449550,-156.224,0.00013733,2]
[339937461,1728167449560,-250.0,0.00013733,2]
[339937462,1728167449569,-298.359,0.00013734,2]
[339937463,1728167449578,-510.03704101,0.00013734,2]
[339937573,1728168632315,-420.40466,0.00012,2]
[339937574,1728168632326,-160.50851,0.00012448,2]
[339937575,1728168632338,-160.50851,0.00012665,2]
[339937576,1728168632349,-174.72347411,0.00012693,2]
[339937578,1728168632363,-103.58203329,0.00012693,2]
[339937580,1728168632374,-160.50851,0.00012881,2]
[339937582,1728168632386,-500.0,0.00013015,2]
[339937583,1728168632398,-160.50851,0.00013097,2]
[339937584,1728168632409,-5666.98393358,0.00013426,2]
[339937585,1728168632419,-300.0,0.00013587,2]
[339937586,1728168632430,-300.0,0.00013587,2]
[339937587,1728168632439,-2502.69837098,0.00013588,2]
[339937588,1728168632449,-920.85151725,0.00013598,2]
[339937589,1728168632459,-1000.0,0.00013598,2]
[339937591,1728168632469,-824.51336293,0.00013678,2]
[339937593,1728168632479,-6759.93972906,0.00013678,2]
[339937595,1728168632489,-7711.16184092,0.00013678,2]
[339937601,1728168632536,-486.54876236,0.00013678,2]
[339937617,1728168638842,-739.258,0.00013678,2]
[339937618,1728168638953,-914.55,0.00013678,2]
[339937631,1728168640372,-18431.72046462,0.00013678,2]
[339937633,1728168640382,-168.506,0.00013688,2]
[339937635,1728168640393,-67599.3972906,0.00013688,2]
[339937637,1728168640402,-254549.151611,0.00013688,2]
[339937639,1728168640411,-11293.25820717,0.00013698,2]
[339937640,1728168640420,-15059.53650832,0.00013698,2]
[339937642,1728168640429,-500.0,0.00013698,2]
[339937644,1728168640438,-500.0,0.00013698,2]
[339937645,1728168640448,-500.0,0.00013698,2]
[339937646,1728168640459,-500.0,0.00013698,2]
[339937647,1728168640468,-500.0,0.00013698,2]
[339937648,1728168640477,-500.0,0.00013698,2]
[339937649,1728168640486,-500.0,0.00013698,2]
[339937650,1728168640495,-500.0,0.00013698,2]
[339937651,1728168640504,-395.31204104,0.00013698,2]
[339937652,1728168640514,-466.51510325,0.00013698,2]
[339937653,1728168640523,-500.0,0.00013698,2]
[339937654,1728168640532,-500.0,0.00013698,2]
[339937655,1728168640542,-500.0,0.00013698,2]
[339937656,1728168640552,-500.0,0.00013698,2]
[339937657,1728168640564,-500.0,0.00013698,2]
[339937658,1728168640575,-500.0,0.00013698,2]
[339937659,1728168640585,-500.0,0.00013698,2]
[339937660,1728168640594,-584.45,0.00013698,2]
[339937661,1728168640603,-500.0,0.00013698,2]
[339937662,1728168640613,-501.79665638,0.00013698,2]
[339937663,1728168640622,-500.0,0.00013698,2]
[339937664,1728168640632,-500.0,0.00013698,2]
[339937665,1728168640641,-500.0,0.00013698,2]
[339937666,1728168640651,-573.97,0.00013698,2]
[339937667,1728168640660,-650.28,0.00013698,2]
[339937668,1728168640669,-500.0,0.00013698,2]
[339937669,1728168640678,-500.0,0.00013698,2]
[339937670,1728168640687,-521.24,0.00013698,2]
[339937671,1728168640698,-500.0,0.00013698,2]
[339937672,1728168640708,-500.0,0.00013698,2]
[339937673,1728168640717,-500.0,0.00013698,2]
[339937674,1728168640727,-500.0,0.00013698,2]
[339937675,1728168640736,-500.0,0.00013698,2]
[339937676,1728168640748,-500.0,0.00013698,2]
[339937677,1728168640759,-500.0,0.00013698,2]
[339937678,1728168640768,-169.49087141,0.00013698,2]
[339937679,1728168640778,-622.77000833,0.00013698,2]
[339937680,1728168640789,-247.10445157,0.00013698,2]
[339937681,1728168640799,-500.0,0.00013698,2]
[339937682,1728168640810,-400.23695444,0.00013698,2]
[339937683,1728168640821,-500.0,0.00013698,2]
[339937684,1728168640830,-500.0,0.00013698,2]
[339937685,1728168640840,-500.0,0.00013698,2]
[339937686,1728168640851,-500.0,0.00013698,2]
[339937687,1728168640862,-500.0,0.00013698,2]
[339937688,1728168640873,-500.0,0.00013698,2]
[339937689,1728168640886,-753.89,0.00013698,2]
[339937690,1728168640897,-704.83,0.00013698,2]
[339937691,1728168640906,-500.0,0.00013698,2]
[339937692,1728168640917,-528.78,0.00013698,2]
[339937693,1728168640926,-500.0,0.00013698,2]
[339937694,1728168640935,-500.0,0.00013698,2]
[339937695,1728168640946,-500.0,0.00013698,2]
[339937696,1728168640957,-550.06,0.00013698,2]
[339937697,1728168640967,-500.0,0.00013698,2]
[339937698,1728168640976,-522.29388025,0.00013698,2]
[339937699,1728168640986,-500.0,0.00013698,2]
[339937700,1728168640996,-500.0,0.00013698,2]
[339937701,1728168641005,-500.0,0.00013698,2]
[339937702,1728168641015,-500.0,0.00013698,2]
[339937703,1728168641024,-500.0,0.00013698,2]
[339937704,1728168641033,-500.0,0.00013698,2]
[339937705,1728168641042,-500.0,0.00013698,2]
[339937706,1728168641052,-500.0,0.00013698,2]
[339937707,1728168641062,-500.0,0.00013698,2]
[339937708,1728168641071,-500.0,0.00013698,2]
[339937709,1728168641081,-500.0,0.00013698,2]
[339937710,1728168641090,-500.0,0.00013698,2]
[339937711,1728168641099,-1019.82,0.00013698,2]
[339937712,1728168641109,-500.0,0.00013698,2]
[339937713,1728168641118,-541.57,0.00013698,2]
[339937714,1728168641127,-500.0,0.00013698,2]
[339937715,1728168641137,-500.0,0.00013698,2]
[339937716,1728168641146,-646.31,0.00013698,2]
[339937717,1728168641155,-500.0,0.00013698,2]
[339937718,1728168641164,-500.0,0.00013698,2]
[339937719,1728168641175,-500.0,0.00013698,2]
[339937720,1728168641183,-500.0,0.00013698,2]
[339937721,1728168641193,-500.0,0.00013698,2]
[339937722,1728168641203,-642.84810241,0.00013698,2]
[339937723,1728168641212,-500.0,0.00013698,2]
[339937724,1728168641221,-500.0,0.00013698,2]
[339937725,1728168641230,-500.0,0.00013698,2]
[339937726,1728168641240,-500.0,0.00013698,2]
[339937727,1728168641249,-500.0,0.00013698,2]
[339937728,1728168641259,-500.0,0.00013698,2]
[339937729,1728168641269,-500.0,0.00013698,2]
[339937730,1728168641280,-500.0,0.00013698,2]
[339937731,1728168641290,-500.0,0.00013698,2]
[339937732,1728168641301,-500.0,0.00013698,2]
[339937733,1728168641311,-741.2,0.00013698,2]
[339937734,1728168641320,-500.0,0.00013698,2]
[339937735,1728168641329,-500.0,0.00013698,2]
[339937736,1728168641339,-500.0,0.00013698,2]
[339937737,1728168641348,-776.14,0.00013698,2]
[339937738,1728168641357,-276.75764162,0.00013698,2]
[339937739,1728168641368,-500.0,0.00013698,2]
[339937740,1728168641378,-500.0,0.00013698,2]
[339937741,1728168641387,-500.0,0.00013698,2]
[339937742,1728168641397,-500.0,0.00013698,2]
[339937743,1728168641407,-500.0,0.00013698,2]
[339937744,1728168641417,-590.51,0.00013698,2]
[339937745,1728168641427,-500.0,0.00013698,2]
[339937746,1728168641438,-500.0,0.00013698,2]
[339937747,1728168641448,-500.0,0.00013698,2]
[339937748,1728168641459,-631.24,0.00013698,2]
[339937749,1728168641470,-551.09,0.00013698,2]
[339937750,1728168641480,-500.0,0.00013698,2]
[339937751,1728168641491,-816.2,0.00013698,2]
[339937752,1728168641501,-500.0,0.00013698,2]
[339937753,1728168641511,-500.0,0.00013698,2]
[339937754,1728168641522,-500.0,0.00013698,2]
[339937755,1728168641532,-500.0,0.00013698,2]
[339937756,1728168641543,-711.35,0.00013698,2]
[339937757,1728168641554,-549.93,0.00013698,2]
[339937758,1728168641566,-500.0,0.00013698,2]
[339937759,1728168641577,-500.0,0.00013698,2]
[339937760,1728168641589,-500.0,0.00013698,2]
[339937761,1728168641599,-500.0,0.00013698,2]
[339937762,1728168641609,-644.68710112,0.00013698,2]
[339937763,1728168641618,-500.0,0.00013698,2]
[339937764,1728168641631,-500.0,0.00013698,2]
[339937765,1728168641641,-500.0,0.00013698,2]
[339937766,1728168641651,-500.0,0.00013698,2]
[339937767,1728168641661,-500.0,0.00013698,2]
[339937768,1728168641671,-500.0,0.00013698,2]
[339937769,1728168641682,-500.0,0.00013698,2]
[339937770,1728168641694,-500.0,0.00013698,2]
[339937771,1728168641707,-500.0,0.00013698,2]
[339937772,1728168641718,-511.55408131,0.00013698,2]
[339937773,1728168641728,-500.0,0.00013698,2]
[339937774,1728168641739,-500.0,0.00013698,2]
[339937775,1728168641749,-500.0,0.00013698,2]
[339937776,1728168641760,-500.0,0.00013698,2]
[339937777,1728168641771,-500.0,0.00013698,2]
[339937778,1728168641780,-500.0,0.00013698,2]
[339937779,1728168641791,-500.0,0.00013698,2]
[339937780,1728168641801,-500.0,0.00013698,2]
[339937781,1728168641812,-500.60226559,0.00013698,2]
[339937782,1728168641822,-500.0,0.00013698,2]
[339937783,1728168641831,-500.0,0.00013698,2]
[339937784,1728168641841,-500.0,0.00013698,2]
[339937785,1728168641852,-500.0,0.00013698,2]
[339937786,1728168641861,-500.0,0.00013698,2]
[339937787,1728168641871,-519.19,0.00013698,2]
[339937788,1728168641883,-500.0,0.00013698,2]
[339937789,1728168641894,-500.0,0.00013698,2]
[339937790,1728168641903,-500.0,0.00013698,2]
[339937791,1728168641912,-500.0,0.00013698,2]
[339937792,1728168641921,-500.0,0.00013698,2]
[339937793,1728168641931,-919.1,0.00013698,2]
[339937794,1728168641941,-539.14334618,0.00013698,2]
[339937795,1728168641951,-170.6206135,0.00013698,2]
[339937796,1728168641963,-500.0,0.00013698,2]
[339937797,1728168641973,-500.0,0.00013698,2]
[339937798,1728168641983,-500.0,0.00013698,2]
[339937799,1728168641995,-500.0,0.00013698,2]
[339937800,1728168642005,-151.0,0.00013698,2]
[339937801,1728168642015,-500.0,0.00013698,2]
[339937802,1728168642028,-843.4,0.00013698,2]
[339937803,1728168642039,-682.34,0.00013698,2]
[339937804,1728168642048,-500.0,0.00013698,2]
[339937805,1728168642059,-500.0,0.00013698,2]
[339937806,1728168642071,-924.31,0.00013698,2]
[339937807,1728168642080,-735.99,0.00013698,2]
[339937808,1728168642090,-500.0,0.00013698,2]
[339937809,1728168642102,-500.0,0.00013698,2]
[339937810,1728168642111,-500.0,0.00013698,2]
[339937811,1728168642121,-509.12,0.00013698,2]
[339937812,1728168642130,-500.0,0.00013698,2]
[339937813,1728168642139,-500.0,0.00013698,2]
[339937814,1728168642149,-500.0,0.00013698,2]
[339937815,1728168642158,-500.0,0.00013698,2]
[339937816,1728168642167,-524.70397807,0.00013698,2]
[339937817,1728168642178,-500.0,0.00013698,2]
[339937818,1728168642188,-500.0,0.00013698,2]
[339937819,1728168642199,-542.52577392,0.00013698,2]
[339937820,1728168642210,-500.0,0.00013698,2]
[339937821,1728168642220,-702.32,0.00013698,2]
[339937822,1728168642232,-500.0,0.00013698,2]
[339937823,1728168642243,-500.0,0.00013698,2]
[339937824,1728168642253,-500.0,0.00013698,2]
[339937825,1728168642263,-636.08,0.00013698,2]
[339937826,1728168642272,-608.77,0.00013698,2]
[339937827,1728168642282,-500.0,0.00013698,2]
[339937828,1728168642293,-500.0,0.00013698,2]
[339937829,1728168642303,-500.0,0.00013698,2]
[339937830,1728168642314,-500.0,0.00013698,2]
[339937831,1728168642324,-500.0,0.00013698,2]
[339937832,1728168642334,-539.93,0.00013698,2]
[339937833,1728168642344,-500.0,0.00013698,2]
[339937834,1728168642355,-500.0,0.00013698,2]
[339937835,1728168642366,-151.0,0.00013698,2]
[339937836,1728168642375,-500.0,0.00013698,2]
[339937837,1728168642385,-500.0,0.00013698,2]
[339937838,1728168642395,-519.54,0.00013698,2]
[339937839,1728168642406,-500.0,0.00013698,2]
[339937840,1728168642416,-500.0,0.00013698,2]
[339937841,1728168642425,-500.0,0.00013698,2]
[339937842,1728168642436,-776.65,0.00013698,2]
[339937843,1728168642448,-500.0,0.00013698,2]
[339937844,1728168642457,-500.0,0.00013698,2]
[339937845,1728168642468,-500.0,0.00013698,2]
[339937846,1728168642479,-500.0,0.00013698,2]
[339937847,1728168642491,-500.91953704,0.00013698,2]
[339937848,1728168642503,-500.0,0.00013698,2]
[339937849,1728168642514,-500.0,0.00013698,2]
[339937850,1728168642524,-500.0,0.00013698,2]
[339937851,1728168642534,-500.0,0.00013698,2]
[339937852,1728168642544,-500.0,0.00013698,2]
[339937853,1728168642553,-679.98,0.00013698,2]
[339937854,1728168642563,-151.0,0.00013698,2]
[339937855,1728168642573,-631.03137144,0.00013698,2]
[339937856,1728168642583,-500.0,0.00013698,2]
[339937857,1728168642594,-704.24,0.00013698,2]
[339937858,1728168642605,-500.0,0.00013698,2]
[339937859,1728168642615,-500.0,0.00013698,2]
[339937860,1728168642625,-500.0,0.00013698,2]
[339937861,1728168642635,-500.0,0.00013698,2]
[339937862,1728168642644,-151.0,0.00013698,2]
[339937863,1728168642654,-511.73942794,0.00013698,2]
[339937864,1728168642664,-540.59534209,0.00013698,2]
[339937865,1728168642674,-500.0,0.00013698,2]
[339937866,1728168642683,-788.88,0.00013698,2]
[339937867,1728168642693,-500.0,0.00013698,2]
[339937868,1728168642702,-500.0,0.00013698,2]
[339937869,1728168642713,-589.62,0.00013698,2]
[339937870,1728168642723,-607.87,0.00013698,2]
[339937871,1728168642732,-500.0,0.00013698,2]
[339937872,1728168642742,-563.43,0.00013698,2]
[339937873,1728168642753,-845.78,0.00013698,2]
[339937874,1728168642764,-553.67,0.00013698,2]
[339937875,1728168642774,-500.0,0.00013698,2]
[339937876,1728168642786,-1149.46,0.00013698,2]
[339937877,1728168642798,-151.0,0.00013698,2]
[339937878,1728168642808,-692.39,0.00013698,2]
[339937879,1728168642818,-500.0,0.00013698,2]
[339937880,1728168642828,-500.0,0.00013698,2]
[339937881,1728168642839,-500.0,0.00013698,2]
[339937882,1728168642849,-500.0,0.00013698,2]
[339937883,1728168642859,-500.0,0.00013698,2]
[339937884,1728168642869,-500.0,0.00013698,2]
[339937885,1728168642879,-470.01737928,0.00013698,2]
[339937886,1728168642895,-500.0,0.00013698,2]
[339937887,1728168642904,-500.0,0.00013698,2]
[339937888,1728168642914,-501.21667364,0.00013698,2]
[339937889,1728168642923,-187.37983026,0.00013698,2]
[339937890,1728168642933,-500.0,0.00013698,2]
[339937892,1728168642943,-500.0,0.00013698,2]
[339937894,1728168642954,-500.0,0.00013698,2]
[339937896,1728168642964,-500.0,0.00013698,2]
[339937899,1728168642974,-500.0,0.00013698,2]
[339937901,1728168642983,-546.13,0.00013698,2]
[339937903,1728168642993,-500.0,0.00013698,2]
[339937905,1728168643002,-500.0,0.00013698,2]
[339937907,1728168643012,-500.0,0.00013698,2]
[339937909,1728168643023,-151.0,0.00013698,2]
[339937911,1728168643032,-500.0,0.00013698,2]
[339937913,1728168643043,-500.0,0.00013698,2]
[339937914,1728168643053,-955.92,0.00013698,2]
[339937915,1728168643063,-500.0,0.00013698,2]
[339937916,1728168643072,-500.0,0.00013698,2]
[339937917,1728168643082,-151.0,0.00013698,2]
[339937918,1728168643092,-105.97578386,0.00013698,2]
[339937919,1728168643119,-394.02421614,0.00013698,2]
[339937920,1728168643128,-500.0,0.00013698,2]
[339937921,1728168643138,-540.83,0.00013698,2]
[339937922,1728168643148,-500.0,0.00013698,2]
[339937923,1728168643158,-318.889411,0.00013698,2]
[339937924,1728168643167,-500.0,0.00013698,2]
[339937925,1728168643177,-500.0,0.00013698,2]
[339937926,1728168643186,-504.13853399,0.00013698,2]
[339937927,1728168643196,-635.98798192,0.00013698,2]
[339937929,1728168643206,-318.889411,0.00013698,2]
[339937930,1728168643216,-500.0,0.00013698,2]
[339937932,1728168643227,-937.01,0.00013698,2]
[339937933,1728168643236,-500.0,0.00013698,2]
[339937934,1728168643246,-500.0,0.00013698,2]
[339937935,1728168643256,-570.87,0.00013698,2]
[339937936,1728168643265,-1001.75,0.00013698,2]
[339937937,1728168643275,-209.09086508,0.00013698,2]
[339937938,1728168643284,-500.0,0.00013698,2]
[339937939,1728168643294,-501.16025032,0.00013698,2]
[339937940,1728168643303,-515.42377405,0.00013698,2]
[339937941,1728168643313,-917.13,0.00013698,2]
[339937942,1728168643322,-500.0,0.00013698,2]
[339937944,1728168643332,-617.06,0.00013698,2]
[339937946,1728168643341,-500.16006235,0.00013698,2]
[339937949,1728168643518,-500.0,0.00013698,2]
[339937950,1728168643533,-571.90753243,0.00013698,2]
[339937951,1728168643542,-625.5,0.00013698,2]
[339937953,1728168643552,-500.0,0.00013698,2]
[339937955,1728168643561,-500.0,0.00013698,2]
[339937956,1728168643570,-500.0,0.00013698,2]
[339937957,1728168643579,-151.0,0.00013698,2]
[339937958,1728168643590,-500.0,0.00013698,2]
[339937959,1728168643599,-151.0,0.00013698,2]
[339937960,1728168643609,-500.0,0.00013698,2]
[339937961,1728168643618,-500.0,0.00013698,2]
[339937962,1728168643628,-1021.45,0.00013698,2]
[339937963,1728168643638,-500.0,0.00013698,2]
[339937964,1728168643648,-933.62,0.00013698,2]
[339937965,1728168643658,-500.0,0.00013698,2]
[339937966,1728168643669,-500.0,0.00013698,2]
[339937967,1728168643679,-151.0,0.00013698,2]
[339937968,1728168643689,-500.0,0.00013698,2]
[339937969,1728168643699,-500.0,0.00013698,2]
[339937970,1728168643709,-151.0,0.00013698,2]
[339937971,1728168643719,-585.34,0.00013698,2]
[339937972,1728168643729,-865.02,0.00013698,2]
[339937973,1728168643738,-500.0,0.00013698,2]
[339937974,1728168643748,-629.97,0.00013698,2]
[339937975,1728168643757,-151.0,0.00013698,2]
[339937976,1728168643767,-1047.02,0.00013698,2]
[339937977,1728168643777,-151.0,0.00013698,2]
[339937978,1728168643787,-500.0,0.00013698,2]
[339937979,1728168643796,-502.4979337,0.00013698,2]
[339937980,1728168643806,-500.0,0.00013698,2]
[339937981,1728168643815,-151.0,0.00013698,2]
[339937982,1728168643825,-2129.98,0.00013698,2]
[339937983,1728168643835,-500.0,0.00013698,2]
[339937984,1728168643845,-537.19,0.00013698,2]
[339937985,1728168643855,-500.0,0.00013698,2]
[339937986,1728168643865,-500.0,0.00013698,2]
[339937987,1728168643874,-500.0,0.00013698,2]
[339937988,1728168643885,-500.0,0.00013698,2]
[339937989,1728168643897,-571.97935354,0.00013698,2]
[339937990,1728168643906,-500.0,0.00013698,2]
[339937991,1728168643916,-151.0,0.00013698,2]
[339937992,1728168643927,-748.4,0.00013698,2]
[339937993,1728168643937,-500.0,0.00013698,2]
[339937994,1728168643947,-151.0,0.00013698,2]
[339937995,1728168643956,-500.0,0.00013698,2]
[339937996,1728168643966,-500.0,0.00013698,2]
[339937997,1728168643976,-500.0,0.00013698,2]
[339937998,1728168643985,-500.0,0.00013698,2]
[339937999,1728168643995,-500.0,0.00013698,2]
[339938000,1728168644004,-718.56,0.00013698,2]
[339938001,1728168644013,-581.72,0.00013698,2]
[339938002,1728168644024,-500.0,0.00013698,2]
[339938003,1728168644033,-530.32,0.00013698,2]
[339938004,1728168644042,-500.0,0.00013698,2]
[339938005,1728168644052,-500.0,0.00013698,2]
[339938006,1728168644062,-500.0,0.00013698,2]
[339938007,1728168644071,-631.79,0.00013698,2]
[339938008,1728168644080,-500.0,0.00013698,2]
[339938009,1728168644090,-500.0,0.00013698,2]
[339938010,1728168644100,-500.0,0.00013698,2]
[339938011,1728168644110,-500.0,0.00013698,2]
[339938012,1728168644120,-911.97,0.00013698,2]
[339938013,1728168644132,-503.34393907,0.00013698,2]
[339938014,1728168644144,-500.0,0.00013698,2]
[339938015,1728168644154,-500.0,0.00013698,2]
[339938016,1728168644164,-500.0,0.00013698,2]
[339938017,1728168644175,-770.75,0.00013698,2]
[339938018,1728168644185,-151.0,0.00013698,2]
[339938019,1728168644196,-151.0,0.00013698,2]
[339938020,1728168644206,-500.0,0.00013698,2]
[339938021,1728168644217,-500.0,0.00013698,2]
[339938022,1728168644227,-500.0,0.00013698,2]
[339938023,1728168644236,-500.0,0.00013698,2]
[339938024,1728168644246,-977.15,0.00013698,2]
[339938025,1728168644256,-151.0,0.00013698,2]
[339938026,1728168644266,-1475.97,0.00013698,2]
[339938027,1728168644276,-500.0,0.00013698,2]
[339938028,1728168644286,-500.0,0.00013698,2]
[339938029,1728168644295,-500.0,0.00013698,2]
[339938030,1728168644304,-962.44,0.00013698,2]
[339938031,1728168644313,-500.0,0.00013698,2]
[339938032,1728168644322,-500.0,0.00013698,2]
[339938033,1728168644331,-500.0,0.00013698,2]
[339938034,1728168644340,-500.0,0.00013698,2]
[339938035,1728168644350,-700.7,0.00013698,2]
[339938036,1728168644359,-666.28,0.00013698,2]
[339938037,1728168644369,-601.75672835,0.00013698,2]
[339938038,1728168644379,-500.0,0.00013698,2]
[339938039,1728168644388,-500.0,0.00013698,2]
[339938040,1728168644397,-656.53,0.00013698,2]
[339938041,1728168644407,-500.0,0.00013698,2]
[339938042,1728168644416,-500.0,0.00013698,2]
[339938043,1728168644426,-500.0,0.00013698,2]
[339938044,1728168644435,-151.0,0.00013698,2]
[339938045,1728168644444,-753.18,0.00013698,2]
[339938046,1728168644453,-1504.2,0.00013698,2]
[339938047,1728168644463,-500.0,0.00013698,2]
[339938048,1728168644472,-500.0,0.00013698,2]
[339938049,1728168644482,-500.0,0.00013698,2]
[339938050,1728168644492,-500.0,0.00013698,2]
[339938051,1728168644502,-500.0,0.00013698,2]
[339938052,1728168644511,-500.0,0.00013698,2]
[339938053,1728168644521,-779.83,0.00013698,2]
[339938054,1728168644530,-500.0,0.00013698,2]
[339938055,1728168644540,-507.84,0.00013698,2]
[339938056,1728168644550,-563.88,0.00013698,2]
[339938057,1728168644559,-574.14378843,0.00013698,2]
[339938058,1728168644570,-540.45,0.00013698,2]
[339938059,1728168644580,-500.0,0.00013698,2]
[339938060,1728168644591,-500.0,0.00013698,2]
[339938061,1728168644601,-500.0,0.00013698,2]
[339938062,1728168644612,-500.0,0.00013698,2]
[339938063,1728168644623,-500.0,0.00013698,2]
[339938064,1728168644633,-500.0,0.00013698,2]
[339938065,1728168644643,-806.96,0.00013698,2]
[339938066,1728168644654,-500.0,0.00013698,2]
[339938067,1728168644664,-500.0,0.00013698,2]
[339938068,1728168644675,-500.07731565,0.00013698,2]
[339938069,1728168644687,-500.0,0.00013698,2]
[339938070,1728168644698,-513.53425258,0.00013698,2]
[339938071,1728168644711,-500.0,0.00013698,2]
[339938072,1728168644722,-500.0,0.00013698,2]
[339938073,1728168644733,-500.0,0.00013698,2]
[339938074,1728168644744,-541.06,0.00013698,2]
[339938075,1728168644753,-500.0,0.00013698,2]
[339938076,1728168644762,-500.0,0.00013698,2]
[339938077,1728168644772,-500.0,0.00013698,2]
[339938078,1728168644781,-500.0,0.00013698,2]
[339938079,1728168644792,-1498.1,0.00013698,2]
[339938080,1728168644801,-500.0,0.00013698,2]
[339938081,1728168644812,-500.0,0.00013698,2]
[339938082,1728168644821,-500.0,0.00013698,2]
[339938083,1728168644831,-500.0,0.00013698,2]
[339938084,1728168644842,-500.0,0.00013698,2]
[339938085,1728168644851,-500.0,0.00013698,2]
[339938086,1728168644861,-500.0,0.00013698,2]
[339938087,1728168644871,-500.0,0.00013698,2]
[339938088,1728168644880,-500.0,0.00013698,2]
[339938089,1728168644892,-500.0,0.00013698,2]
[339938090,1728168644902,-500.0,0.00013698,2]
[339938091,1728168644912,-500.0,0.00013698,2]
[339938092,1728168644921,-500.0,0.00013698,2]
[339938093,1728168644930,-500.0,0.00013698,2]
[339938094,1728168644940,-723.31,0.00013698,2]
[339938095,1728168644949,-500.0,0.00013698,2]
[339938096,1728168644959,-827.71,0.00013698,2]
[339938097,1728168644969,-500.0,0.00013698,2]
[339938098,1728168644981,-847.18,0.00013698,2]
[339938099,1728168644991,-657.48,0.00013698,2]
[339938100,1728168645002,-500.0,0.00013698,2]
[339938101,1728168645012,-500.0,0.00013698,2]
[339938102,1728168645027,-1017.66,0.00013698,2]
[339938103,1728168645038,-255.99943752,0.00013698,2]
[339938104,1728168645047,-500.0,0.00013698,2]
[339938105,1728168645057,-500.0,0.00013698,2]
[339938106,1728168645066,-500.0,0.00013698,2]
[339938107,1728168645075,-500.0,0.00013698,2]
[339938108,1728168645085,-500.0,0.00013698,2]
[339938109,1728168645095,-507.71130015,0.00013698,2]
[339938110,1728168645104,-151.0,0.00013698,2]
[339938111,1728168645114,-500.0,0.00013698,2]
[339938112,1728168645123,-500.0,0.00013698,2]
[339938113,1728168645132,-500.0,0.00013698,2]
[339938114,1728168645141,-500.0,0.00013698,2]
[339938115,1728168645150,-500.0,0.00013698,2]
[339938116,1728168645160,-500.0,0.00013698,2]
[339938117,1728168645170,-500.0,0.00013698,2]
[339938118,1728168645179,-604.91338104,0.00013698,2]
[339938119,1728168645188,-500.0,0.00013698,2]
[339938120,1728168645198,-500.0,0.00013698,2]
[339938121,1728168645207,-500.0,0.00013698,2]
[339938122,1728168645216,-2434.45,0.00013698,2]
[339938123,1728168645226,-500.0,0.00013698,2]
[339938124,1728168645235,-151.0,0.00013698,2]
[339938125,1728168645245,-500.0,0.00013698,2]